bitfinex-derivatives/quotes_ETHF0:USTF0_20260102
["timestamp","ask_amount","ask_price","bid_price","bid_amount"]
[1767315962017,0.77344111,3007.3,3006.3,0.00498894]
[1767315962517,0.77345217,3007.1,3006.3,0.00498894]
[1767315963116,0.00498894,3007.0,3006.3,0.00498894]
[1767315963517,0.77345217,3006.9,3006.3,0.00498894]
[1767315963815,0.00498894,3007.0,3006.3,0.14735885]
[1767315982033,0.00398894,3007.0,3006.3,0.14735885]
[1767316008757,0.77366651,3006.9,3005.1,0.16659]
[1767316009662,0.77366651,3006.9,3005.7,0.00498894]
[1767316009955,0.7764217,3006.9,3005.7,0.00498894]
[1767316010654,0.00275519,3006.9,3005.7,0.14217256]
[1767316033567,0.77366651,3006.7,3005.1,0.00288979]
[1767316034571,0.77366651,3006.7,3005.6,0.00498894]
[1767316039074,0.91034224,3006.7,3005.1,0.14323029]
[1767316040076,0.91034224,3006.7,3005.1,0.14598124]
[1767316040280,0.91034224,3006.7,3005.6,0.00498894]
[1767316040973,0.77366651,3006.3,3005.1,0.14598124]
[1767316041183,0.91034224,3006.3,3005.1,0.00275095]
[1767316042077,0.13667573,3006.2,3005.1,0.00275095]
[1767316043079,0.13667573,3006.2,3005.3,0.00432596]
[1767316043377,0.77366651,3005.9,3004.3,0.14730685]
[1767316044379,0.00498894,3005.4,3004.3,0.15155179]
[1767316049582,0.13613483,3006.7,3005.0,0.1412677]
[1767316049787,0.1665,3006.8,3005.0,0.1412677]
[1767316050579,0.00498894,3006.2,3005.0,0.1412677]
[1767316056497,0.00498894,3006.2,3005.4,0.77380515]
[1767316057594,0.00498894,3006.2,3005.6,0.77380515]
[1767316057797,3.08e-06,3006.2,3005.6,0.77380515]
[1767316058184,3.08e-06,3006.2,3005.3,0.1412677]
[1767316058591,3.08e-06,3006.2,3005.4,0.77380515]
[1767316059596,3.08e-06,3006.2,3005.8,0.77380515]
[1767316059794,0.00275519,3006.9,3005.8,0.77380515]
[1767316060494,0.00275519,3006.9,3006.0,0.77380515]
[1767316060696,0.00498894,3006.8,3006.1,0.00498894]
[1767316072005,0.00398894,3006.8,3006.1,0.00498894]
[1767316072710,0.77380515,3006.3,3005.0,0.1666]
[1767316072899,0.77380515,3006.1,3004.9,0.1412677]
[1767316073700,0.77380515,3006.1,3005.2,0.00498894]
[1767316074903,0.90727604,3006.1,3005.2,0.00498894]
[1767316076914,0.77380515,3005.9,3005.2,0.00498894]
[1767316077209,0.77380515,3005.9,3004.5,0.90982881]
[1767316077912,0.77380515,3005.9,3004.5,0.13602366]
[1767316078112,0.77380515,3005.9,3004.9,0.001]
[1767316078306,0.13347089,3005.4,3004.3,0.00424494]
[1767316078513,0.77380515,3005.8,3004.4,0.77380515]
[1767316078807,0.77380515,3005.6,3004.4,0.77380515]
[1767316079004,0.77380515,3005.4,3004.3,0.00424494]
[1767316079201,0.77879409,3005.2,3004.3,0.00424494]
[1767316080003,0.00498894,3005.2,3004.3,0.00424494]
[1767316080807,0.00498894,3005.2,3004.4,0.77380515]
[1767316081013,0.13347089,3005.9,3004.6,0.77380515]
[1767316082015,0.00498894,3005.6,3004.9,0.00498894]
[1767316086617,0.00498894,3005.6,3005.0,0.77380515]
[1767316086821,0.13347089,3006.3,3005.0,0.77380515]
[1767316087716,0.00498894,3006.0,3005.0,0.77380515]
[1767316088111,0.00498894,3006.0,3004.9,0.77879409]
[1767316089516,0.00498894,3006.0,3004.9,0.00498894]
[1767316089719,0.77380515,3005.8,3004.9,0.00498894]
[1767316091613,0.77380515,3005.4,3004.9,0.00498894]
[1767316091916,0.13347089,3005.4,3004.3,0.00424494]
[1767316092321,0.13347089,3005.3,3004.3,0.00424494]
[1767316092918,0.13347089,3005.3,3004.5,0.00498894]
[1767316094212,0.13347089,3005.7,3004.5,0.00498894]
[1767316095422,0.13347089,3005.7,3004.6,0.77380515]
[1767316096011,0.17152894,3006.0,3004.6,0.77380515]
[1767316096523,0.00498894,3006.0,3004.6,0.77380515]
[1767316097323,0.91226498,3006.0,3004.6,0.77380515]
[1767316098022,0.91126498,3006.0,3004.6,0.77380515]
[1767316102432,0.13347089,3005.9,3004.5,0.00498894]
[1767316102632,0.77380515,3005.8,3004.5,0.00498894]
[1767316102831,0.13347089,3005.9,3004.6,0.77380515]
[1767316103529,0.00398894,3006.0,3004.8,0.77380515]
[1767316103735,0.00398894,3006.0,3005.2,0.77380515]
[1767316104335,0.00398894,3006.0,3004.6,0.13989296]
[1767316104631,0.00398894,3006.0,3004.9,0.77380515]
[1767316105936,0.00398894,3006.0,3005.1,0.77380515]
[1767316106133,0.00398894,3006.0,3005.3,0.77380515]
[1767316106837,0.00398894,3006.0,3005.1,0.77380515]
[1767316108137,0.00398894,3006.0,3005.3,0.77380515]
[1767316111039,0.00398894,3006.0,3004.9,0.1456139]
[1767316111040,0.13496826,3006.8,3005.5,0.77380515]
[1767316111739,0.13496826,3006.8,3005.4,0.77380515]
[1767316111940,0.00498894,3006.4,3005.4,0.77380515]
[1767316114342,0.00498894,3006.4,3005.1,0.14626652]
[1767316114545,0.00498894,3006.4,3005.4,0.77380515]
[1767316116644,0.00498894,3006.4,3005.2,0.77380515]
[1767316118738,0.00498894,3006.4,3005.1,0.14626652]
[1767316119047,0.1399572,3006.4,3004.8,0.14624851]
[1767316121945,0.1389572,3006.4,3004.8,0.14624851]
[1767316125044,0.1389572,3006.4,3004.7,0.16661]
[1767316127057,0.1379572,3006.4,3004.7,0.16661]
[1767316134556,0.1369572,3006.4,3004.7,0.16661]
[1767316135154,0.1369572,3006.4,3004.7,0.30839828]
[1767316136160,0.1369572,3006.4,3004.8,0.14178828]
[1767316139960,0.14521136,3006.2,3004.7,0.16661]
[1767316140553,0.14521136,3006.2,3004.8,4.541]
[1767316142452,0.14521136,3006.2,3004.8,4.68278828]
[1767316142756,0.00198894,3006.4,3004.8,4.68278828]
[1767316143656,0.1472003,3006.4,3004.8,4.68278828]
[1767316144053,0.14521136,3005.8,3004.5,0.00498894]
[1767316144258,0.14521136,3005.4,3004.5,0.00498894]
[1767316146160,0.14421136,3005.4,3004.5,0.00498894]
[1767316147961,0.14421136,3005.4,3004.3,0.00424494]
[1767316148170,0.14521136,3005.1,3004.3,0.00424494]
[1767316148967,0.14521136,3005.1,3004.4,0.00498894]
[1767316157077,0.14521136,3005.5,3004.4,0.00498894]
[1767316167081,0.14421136,3005.5,3004.4,0.00498894]
[1767316180892,0.14321136,3005.5,3004.4,0.00498894]
[1767316186396,0.14221136,3005.5,3004.4,0.00498894]
[1767316190593,0.14121136,3005.5,3004.4,0.00498894]
[1767316196503,0.14021136,3005.5,3004.4,0.00498894]
[1767316201807,0.13543154,3005.4,3004.4,0.00498894]
[1767316204213,0.13543154,3005.4,3004.4,0.77935654]
[1767316204917,0.90979914,3005.4,3004.4,0.00498894]
[1767316205320,0.13643154,3005.3,3004.4,0.00498894]
[1767316206119,0.13543154,3005.3,3004.4,0.00498894]
[1767316206820,0.7743676,3005.2,3004.4,0.00498894]
[1767316208118,0.13643154,3005.1,3004.4,0.00498894]
[1767316212610,0.13543154,3005.1,3004.4,0.00498894]
[1767316232933,0.13543154,3005.1,3004.4,0.77935654]
[1767316233528,0.13543154,3005.1,3004.4,0.00498894]
[1767316249050,0.13443154,3005.1,3004.4,0.00498894]
[1767316261755,0.13343154,3005.1,3004.4,0.00498894]
[1767316277365,1.78952855,3006.3,3004.4,0.00498894]
[1767316277663,1.09397246,3006.2,3004.5,2.21824769]
[1767316277862,0.16651,3006.6,3004.5,2.35400788]
[1767316278161,1.09386021,3006.3,3004.5,0.91017508]
[1767316278464,0.16651,3006.6,3004.5,0.91017508]
[1767316279357,0.1411129,3006.3,3004.5,0.91017508]
[1767316279558,0.1411129,3006.3,3004.5,0.13576019]
[1767316281364,0.1411129,3006.3,3004.5,0.91017508]
[1767316282167,0.1411129,3006.3,3004.5,0.13576019]
[1767316284866,0.1411129,3006.3,3004.5,0.91017508]
[1767316291780,0.1411129,3006.3,3004.6,0.14698912]
[1767316293075,0.1411129,3006.3,3004.9,0.92140401]
[1767316293273,0.1411129,3006.3,3005.0,0.14698912]
[1767316293876,0.13441204,3006.7,3005.0,0.14698912]
[1767316294982,0.13441204,3006.7,3005.4,0.14698912]
[1767316295878,0.00498894,3006.4,3005.1,0.14698912]
[1767316297178,0.00498894,3006.4,3005.1,4.71398912]
[1767316297373,0.00498894,3006.4,3005.2,0.14698912]
[1767316299172,0.00275519,3006.9,3005.4,0.14698912]
[1767316299380,0.00275519,3006.9,3005.8,0.92140401]
[1767316299577,0.00275519,3006.9,3005.8,0.77441489]
[1767316299786,0.00275519,3006.9,3005.5,0.14698912]
[1767316300180,0.00498894,3006.5,3005.9,0.00498894]
[1767316304491,0.00498894,3006.5,3005.9,0.77850686]
[1767316306989,0.00498894,3006.5,3005.9,0.00498894]
[1767316322815,0.00275519,3006.9,3006.2,0.77351792]
[1767316323211,0.13441204,3007.1,3006.2,0.77351792]
[1767316323811,0.00498894,3007.0,3006.2,0.77351792]
[1767316324300,0.0089391,3007.0,3006.2,0.77351792]
[1767316325212,0.0089391,3007.0,3006.0,0.77351792]
[1767316327911,0.0089391,3007.0,3005.9,0.00498894]
[1767316328610,0.0089391,3007.0,3006.3,0.77351792]
[1767316329012,0.0089391,3007.0,3006.1,0.77351792]
[1767316332113,0.0089391,3007.0,3006.4,0.77351792]
[1767316333604,0.0089391,3007.0,3006.0,0.77351792]
[1767316333605,0.00063753,3007.0,3006.6,0.77351792]
[1767316333912,0.14750891,3007.7,3006.6,0.77351792]
[1767316334723,0.00498894,3007.5,3006.6,0.77635205]
[1767316335516,0.00498894,3007.5,3007.0,0.77351792]
[1767316335818,0.00169058,3007.7,3007.0,0.77351792]
[1767316336624,0.00501654,3007.7,3007.0,0.77351792]
[1767316336923,0.00501654,3007.7,3006.8,0.77351792]
[1767316341229,0.00501654,3007.7,3007.0,0.77351792]
[1767316341625,0.00501654,3007.7,3006.8,0.77351792]
[1767316342428,0.00501654,3007.7,3006.8,0.91196189]
[1767316342621,0.00401654,3007.7,3006.8,0.91196189]
[1767316342824,0.00401654,3007.7,3007.0,0.77351792]
[1767316343022,0.14750891,3008.6,3007.6,0.77351792]
[1767316343231,0.14750891,3008.6,3007.2,0.91196189]
[1767316343232,0.92102683,3008.6,3007.2,0.91196189]
[1767316343740,0.77351792,3008.4,3007.0,0.77351792]
[1767316344033,0.914008,3008.4,3007.4,0.00498894]
[1767316351735,0.77351792,3008.0,3007.4,0.00498894]
[1767316352035,0.914008,3008.0,3007.4,0.00498894]
[1767316352236,0.14049008,3008.0,3007.4,0.00498894]
[1767316356643,0.14547902,3008.0,3006.8,0.77351792]
[1767316357441,0.14547902,3008.0,3007.0,0.77351792]
[1767316357643,0.14547902,3008.0,3007.2,0.00498894]
[1767316375562,0.14547902,3008.0,3006.6,0.00283413]
[1767316376865,0.14547902,3008.0,3007.0,0.00498894]
[1767316393575,0.00498894,3008.0,3007.0,0.00498894]
[1767316401984,0.14564294,3008.0,3007.0,0.00498894]
[1767316420512,0.00498894,3008.0,3007.0,0.00498894]
[1767316420816,0.13646062,3008.5,3007.2,0.7730522]
[1767316421113,0.36118144,3008.7,3007.3,0.14210811]
[1767316421618,0.00498894,3008.3,3007.3,0.14210811]
[1767316428422,0.00498894,3008.3,3007.3,0.12410811]
[1767316428620,0.00498894,3008.3,3007.5,0.77273204]
[1767316434427,0.00498894,3008.3,3007.3,0.12410811]
[1767316434631,0.00498894,3008.3,3007.4,0.77273204]
[1767316434927,0.00498894,3008.3,3007.3,0.12410811]
[1767316435128,0.00498894,3008.3,3007.4,0.77273204]
[1767316436125,0.00398894,3008.3,3007.4,5.33673204]
[1767316437226,0.00398894,3008.3,3007.4,0.77273204]
[1767316437424,0.00398894,3008.3,3007.4,5.33873204]
[1767316440630,0.00398894,3008.3,3007.4,5.34173204]
[1767316441524,0.00398894,3008.3,3007.0,0.00498894]
[1767316441727,0.14372837,3008.2,3007.1,4.571]
[1767316441933,0.00398894,3008.3,3007.4,0.77273204]
[1767316442233,0.00398894,3008.3,3007.1,4.571]
[1767316442730,0.00398894,3008.3,3007.2,0.77273204]
[1767316444426,0.00398894,3008.3,3007.4,0.77273204]
[1767316444837,0.00298894,3008.3,3007.1,5.34373204]
[1767316446732,0.00298894,3008.3,3007.1,0.77273204]
[1767316446932,0.00298894,3008.3,3007.2,4.581]
[1767316448235,0.14372837,3008.2,3007.0,0.00498894]
[1767316450738,0.14372837,3008.0,3007.0,0.00498894]
[1767316452033,0.14372837,3007.6,3006.6,0.00283413]
[1767316453037,0.14372837,3007.6,3006.8,0.00498894]
[1767316455428,0.91646041,3007.5,3006.8,0.00498894]
[1767316455834,0.14372837,3007.0,3005.9,4.72703189]
[1767316456035,0.14372837,3007.4,3005.9,5.49976393]
[1767316456239,0.14372837,3007.4,3006.1,0.77273204]
[1767316456738,0.00498894,3007.1,3006.4,0.00498894]
[1767316457040,0.00782307,3007.1,3006.4,0.00851904]
[1767316457443,0.00682307,3007.1,3006.4,0.00851904]
[1767316461445,0.00682307,3007.1,3006.5,0.77273204]
[1767316464747,0.00682307,3007.1,3006.4,0.00851904]
[1767316472046,0.00582307,3007.1,3006.4,0.00851904]
[1767316475846,0.13977381,3007.1,3006.4,0.00851904]
[1767316476046,0.13977381,3007.1,3005.8,0.90682628]
[1767316477047,0.13977381,3007.1,3006.1,0.00498894]
[1767316479056,0.90668278,3006.9,3006.1,0.00498894]
[1767316480156,0.90568278,3006.9,3006.1,0.00498894]
[1767316480957,0.13395074,3006.8,3006.1,0.00498894]
[1767316481259,0.77273204,3006.7,3006.1,0.00498894]
[1767316481455,0.90668278,3006.7,3005.8,0.00400223]
[1767316482546,0.90668278,3006.7,3005.9,0.00498894]
[1767316483353,0.13395074,3006.7,3005.9,0.00498894]
[1767316484453,0.77273204,3006.6,3005.9,0.00498894]
[1767316484656,0.90668278,3006.6,3005.9,0.00498894]
[1767316485052,0.13395074,3006.3,3005.0,0.90682628]
[1767316485564,0.77273204,3006.2,3005.0,0.13409424]
[1767316486062,0.77273204,3006.2,3005.3,0.00498894]
[1767316487263,0.90668278,3006.2,3005.3,0.00498894]
[1767316487461,0.13395074,3006.2,3005.3,0.00498894]
[1767316488158,0.90668278,3006.1,3005.3,0.00498894]
[1767316488561,0.13395074,3006.1,3005.3,0.00498894]
[1767316489867,0.13295074,3006.1,3005.3,0.00498894]
[1767316497379,0.14584902,3006.5,3005.3,0.00498894]
[1767316500475,0.14584902,3006.1,3005.0,0.00244267]
[1767316500973,0.14484902,3006.1,3005.0,0.00244267]
[1767316501378,0.14484902,3006.1,3005.2,0.00233702]
[1767316502877,0.9190271,3006.1,3005.0,0.00244267]
[1767316503084,0.14584902,3005.6,3004.0,0.29999541]
[1767316503573,0.14584902,3005.6,3003.4,0.13334541]
[1767316503878,0.15083796,3004.8,3003.4,0.13334541]
[1767316504065,0.14584902,3004.3,3003.4,0.00320217]
[1767316504470,0.14584902,3004.3,3003.1,0.1]
[1767316505072,0.77417808,3004.0,3003.1,0.1]
[1767316505267,0.00921885,3004.8,3001.4,0.16679]
[1767316505268,0.9200271,3003.6,3001.5,0.13334541]
[1767316505476,0.00498894,3002.9,3001.5,0.19130643]
[1767316505679,0.00498894,3002.9,3001.6,0.13334541]
[1767316507982,0.00498894,3002.9,3001.9,0.13334541]
[1767316509173,0.00498894,3002.9,3001.5,0.13589684]
[1767316509578,0.00398894,3002.9,3001.5,0.13589684]
[1767316510688,0.00398894,3002.9,3001.9,0.001]
[1767316515890,0.00398894,3002.9,3001.9,0.13434541]
[1767316517586,2.35,3003.9,3001.9,0.13434541]
[1767316517587,2.709,3003.9,3001.9,0.13434541]
[1767316517983,4.555,3004.0,3001.9,0.13434541]
[1767316518182,1.06621435,3003.9,3001.9,0.13434541]
[1767316518379,4.555,3004.0,3001.9,0.13434541]
[1767316518580,0.00498894,3003.3,3001.9,0.13434541]
[1767316520993,0.00398894,3003.3,3001.9,0.13434541]
[1767316524097,0.00398894,3003.3,3002.1,0.13633191]
[1767316526497,1.78952855,3004.3,3002.1,0.13633191]
[1767316526690,1.07002727,3004.2,3002.1,0.13633191]
[1767316526886,0.13313279,3004.0,3002.1,0.13633191]
[1767316527088,1.07002727,3003.9,3002.1,0.13633191]
[1767316527487,0.00498894,3003.3,3002.1,0.13633191]
[1767316532599,0.00498894,3003.3,3002.4,0.13633191]
[1767316533193,1.07873966,3003.2,3002.4,0.13633191]
[1767316533388,0.00498894,3003.3,3002.4,0.13633191]
[1767316533593,1.07873615,3003.2,3002.4,0.13633191]
[1767316533789,0.00498894,3003.3,3002.4,0.13633191]
[1767316533993,1.07873615,3003.2,3002.4,0.13633191]
[1767316534196,0.00498894,3003.3,3002.4,0.13633191]
[1767316534502,0.93129871,3003.2,3002.4,0.13633191]
[1767316534802,1.78952855,3003.9,3002.4,0.13633191]
[1767316535300,1.78952855,3004.0,3002.4,0.13633191]
[1767316535695,0.00498894,3003.5,3002.4,0.13633191]
[1767316535996,1.78952855,3004.0,3002.8,0.77516249]
[1767316536203,0.13313279,3004.3,3002.8,0.9114944]
[1767316537096,0.00498894,3003.9,3002.8,0.9114944]
[1767316538301,0.13812173,3003.9,3002.4,0.30307191]
[1767316538795,0.00498894,3003.9,3002.7,0.9114944]
[1767316538996,0.00498894,3003.9,3002.8,0.13633191]
[1767316546509,0.32687637,3004.6,3003.1,0.77516249]
[1767316546808,1.0665973,3004.5,3003.1,0.77516249]
[1767316547011,1.0665973,3004.4,3003.1,0.77516249]
[1767316547214,0.32687637,3004.6,3003.1,0.77516249]
[1767316547413,0.00498894,3004.2,3003.5,0.00498894]
[1767316548615,0.00498894,3004.2,3003.6,0.77473106]
[1767316551310,0.00498894,3004.2,3003.5,0.77972]
[1767316552606,0.00498894,3004.2,3003.7,0.77473106]
[1767316552801,0.32687637,3004.6,3003.9,0.77473106]
[1767316553808,0.33020233,3004.6,3003.9,0.77473106]
[1767316554007,0.00332596,3004.6,3003.9,0.77473106]
[1767316554206,0.14478276,3005.1,3004.5,0.77473106]
[1767316554412,0.13756384,3005.1,3004.1,0.77473106]
[1767316555308,0.1404397,3005.1,3004.1,0.77473106]
[1767316555509,0.00287586,3005.1,3004.3,0.77473106]
[1767316556510,0.00287586,3005.1,3004.5,0.77473106]
[1767316557115,0.00287586,3005.1,3003.7,0.14242669]
[1767316557116,0.00287586,3005.1,3004.3,0.77473106]
[1767316560920,0.00287586,3005.1,3003.7,0.14242669]
[1767316561120,0.00287586,3005.1,3004.4,0.77473106]
[1767316564222,0.00287586,3005.1,3004.0,0.13933132]
[1767316564423,0.00287586,3005.1,3004.4,0.77473106]
[1767316565529,0.00287586,3005.1,3004.0,0.13933132]
[1767316565732,0.00287586,3005.1,3004.1,0.77473106]
[1767316566133,0.00287586,3005.1,3004.3,0.77473106]
[1767316566835,0.00287586,3005.1,3004.1,0.77473106]
[1767316567037,0.00187586,3005.1,3004.1,0.77473106]
[1767316567225,0.00187586,3005.1,3003.7,0.00309537]
[1767316567430,0.14478276,3005.0,3003.8,0.77473106]
[1767316569023,0.00187586,3005.1,3004.4,0.77473106]
[1767316569440,0.00187586,3005.1,3004.2,0.77473106]
[1767316572137,0.00187586,3005.1,3004.0,0.77473106]
[1767316572837,0.14478276,3005.0,3003.7,0.00309537]
[1767316573425,0.14478276,3004.8,3003.7,0.00309537]
[1767316577741,0.91951382,3004.2,3003.7,0.00309537]
[1767316577942,0.14478276,3004.2,3003.5,0.00498894]
[1767316578942,0.14478276,3004.2,3003.5,0.00734947]
[1767316579943,13.0,3005.0,3003.5,0.00734947]
[1767316579944,0.77473106,3004.7,3003.5,0.00734947]
[1767316580146,0.14478276,3004.6,3003.5,0.00734947]
[1767316584757,0.14287519,3005.0,3004.2,0.77473106]
[1767316585057,0.14287519,3005.0,3004.0,0.77473106]
[1767316585648,0.00187586,3005.1,3004.0,0.77473106]
[1767316585853,0.00187586,3005.1,3004.2,0.77473106]
[1767316588448,0.00187586,3005.1,3004.4,0.77473106]
[1767316588846,4.547,3005.7,3004.6,0.77473106]
[1767316589046,4.68987519,3005.7,3004.6,0.77473106]
[1767316589653,0.14287519,3005.7,3004.6,0.77473106]
[1767316589860,0.14658589,3005.7,3004.6,0.77473106]
[1767316590658,0.0037107,3005.7,3005.0,0.77473106]
[1767316590961,4.548,3006.4,3005.2,0.77473106]
[1767316591150,4.69087519,3006.4,3005.2,0.77473106]
[1767316591454,0.14287519,3006.3,3005.2,0.77473106]
[1767316592060,0.14552204,3006.3,3005.2,0.77473106]
[1767316592955,4.69552204,3006.3,3005.2,0.77473106]
[1767316593253,0.14552204,3006.3,3005.2,0.77473106]
[1767316593451,0.14552204,3006.3,3005.4,0.77473106]
[1767316593951,0.00264685,3006.3,3005.6,0.77473106]
[1767316600154,0.00164685,3006.3,3005.6,0.77473106]
[1767316602254,0.00164685,3006.3,3005.3,0.13337297]
[1767316602255,0.30935519,3007.1,3005.8,0.77473106]
[1767316602460,0.14287519,3007.1,3006.2,0.77473106]
[1767316603257,0.16645,3007.7,3006.0,0.77473106]
[1767316603561,0.00349736,3007.1,3006.5,0.00498894]
[1767316621374,0.00249736,3007.1,3006.5,0.00498894]
[1767316625381,0.14437795,3007.1,3005.7,0.00393277]
[1767316626288,0.00498894,3006.7,3006.1,0.00498894]
[1767316628491,4.72988059,3006.6,3005.7,0.00393277]
[1767316628696,0.14188059,3006.5,3005.7,0.00393277]
[1767316628890,0.14188059,3006.5,3004.8,0.31280371]
[1767316629498,0.14188059,3006.5,3005.3,0.00498894]
[1767316629987,0.14188059,3006.5,3005.3,0.00850278]
[1767316630696,0.14188059,3006.3,3005.3,0.00850278]
[1767316637499,0.14088059,3006.3,3005.3,0.00850278]
[1767316638502,5.52804902,3006.6,3004.4,0.91973273]
[1767316638503,0.94006902,3006.2,3004.4,0.14619371]
[1767316638797,0.94006902,3006.2,3004.3,0.14619371]
[1767316639603,0.14188059,3006.1,3004.9,0.00498894]
[1767316641701,0.30842059,3006.1,3004.9,0.00498894]
[1767316642005,0.14188059,3006.0,3004.9,0.00498894]
[1767316642302,4.588,3005.9,3004.9,0.00498894]
[1767316643504,0.1456095,3005.8,3004.9,0.00498894]
[1767316646505,0.1446095,3005.8,3004.9,0.00498894]
[1767316648203,0.77353902,3005.8,3004.9,0.00498894]
[1767316648404,0.13595985,3005.7,3004.9,0.00498894]
[1767316649906,0.13595985,3005.7,3004.3,0.00300995]
[1767316650903,0.13595985,3005.7,3004.7,0.00498894]
[1767316653212,0.13595985,3005.7,3004.3,0.00300995]
[1767316654102,0.13595985,3005.3,3004.3,0.00300995]
[1767316654299,0.14094879,3005.1,3003.5,0.14065884]
[1767316655305,0.14094879,3005.1,3004.0,0.00332596]
[1767316664917,0.13994879,3005.1,3004.0,0.00332596]
[1767316670524,0.7748188,3004.8,3004.0,0.00332596]
[1767316670715,0.77826597,3004.8,3004.0,0.00332596]
[1767316671617,0.7748188,3004.6,3004.0,0.00332596]
[1767316674816,0.77826597,3004.8,3004.0,0.00332596]
[1767316679827,0.9137604,3004.6,3003.5,0.00414298]
[1767316680030,0.7748188,3004.4,3003.5,0.00414298]
[1767316680331,0.9137604,3004.6,3003.5,0.00414298]
[1767316682225,0.1389416,3004.6,3003.5,0.00414298]
[1767316684033,0.1379416,3004.6,3003.5,0.00414298]
[1767316685629,0.77826597,3004.8,3003.5,0.00414298]
[1767316686438,0.91720757,3004.8,3003.5,0.00414298]
[1767316690140,0.91620757,3004.8,3003.5,0.00414298]
[1767316691638,0.14138877,3004.8,3003.5,0.00414298]
[1767316691840,0.14138877,3004.8,3003.6,0.7748188]
[1767316692338,0.00244717,3004.8,3003.6,0.7748188]
[1767316692534,0.00244717,3004.8,3003.9,0.7748188]
[1767316694847,0.00244717,3004.8,3003.7,0.7748188]
[1767316695142,0.00244717,3004.8,3003.6,0.14258897]
[1767316695838,0.00244717,3004.8,3003.5,0.00414298]
[1767316696147,0.1389416,3004.6,3003.5,0.00414298]
[1767316697846,0.7748188,3004.5,3003.5,0.00414298]
[1767316698050,0.9137604,3004.5,3003.5,0.00414298]
[1767316698452,0.7748188,3004.3,3003.5,0.00414298]
[1767316699643,0.9137604,3004.5,3003.5,0.00414298]
[1767316700455,0.1389416,3004.5,3003.5,0.00414298]
[1767316700655,0.9137604,3004.5,3003.5,0.00414298]
[1767316700957,0.1389416,3004.5,3003.5,0.00414298]
[1767316707665,0.77726597,3004.8,3003.5,0.00414298]
[1767316708170,0.91677478,3004.8,3003.5,0.00414298]
[1767316708779,0.13950881,3004.7,3003.5,0.00414298]
[1767316708963,0.91432761,3004.6,3003.5,0.00414298]
[1767316709964,0.13950881,3004.6,3003.5,0.00414298]
[1767316710165,0.91432761,3004.6,3003.5,0.00414298]
[1767316715978,0.13950881,3004.5,3003.5,0.00414298]
[1767316727080,0.13950881,3004.3,3003.5,0.00414298]
[1767316728180,0.13850881,3004.3,3003.5,0.00414298]
[1767316731293,0.13950881,3004.7,3003.6,0.7748188]
[1767316732492,0.13950881,3004.7,3003.5,0.00414298]
[1767316740599,0.00244717,3004.8,3003.6,0.14277555]
[1767316753608,0.00144717,3004.8,3003.6,0.14277555]
[1767316755605,0.00144717,3004.8,3003.5,0.7788663]
[1767316755911,0.00144717,3004.8,3003.5,0.00414298]
[1767316756807,0.14633836,3004.8,3003.5,0.00414298]
[1767316772624,0.14533836,3004.8,3003.5,0.00414298]
[1767316778324,0.14433836,3004.8,3003.5,0.00414298]
[1767316779437,0.14672966,3004.8,3003.5,0.00414298]
[1767316786242,0.14572966,3004.8,3003.5,0.00414298]
[1767316793345,0.14472966,3004.8,3003.5,0.00414298]
[1767316794447,0.14472966,3004.8,3003.5,0.77893188]
[1767316797446,0.14762716,3004.6,3003.5,0.00414298]
[1767316800241,0.14762716,3004.4,3003.5,0.00414298]
[1767316801049,0.15001846,3004.8,3003.7,0.7747889]
[1767316801262,0.15001846,3004.8,3003.9,0.7747889]
[1767316801556,0.0023913,3004.8,3004.3,0.7747889]
[1767316801853,0.00498894,3005.1,3004.3,0.7747889]
[1767316802655,0.00823368,3005.1,3004.3,0.7747889]
[1767316802850,0.00723368,3005.1,3004.3,0.7747889]
[1767316803857,0.00723368,3005.1,3004.4,0.001]
[1767316812258,0.15486084,3005.1,3004.4,0.001]
[1767316812457,0.14762716,3005.0,3003.6,0.7747889]
[1767316812662,0.14762716,3004.8,3003.5,0.00414298]
[1767316812864,0.14762716,3004.8,3003.6,0.7747889]
[1767316820462,0.14762716,3004.8,3003.5,0.00414298]
[1767316824964,0.14762716,3004.8,3003.6,0.7747889]
[1767316828573,0.14662716,3004.8,3003.6,0.7747889]
[1767316833866,0.14662716,3004.8,3003.8,0.7747889]
[1767316834975,0.78202258,3005.1,3003.8,0.7747889]
[1767316835173,0.00723368,3005.1,3003.8,0.7747889]
[1767316835474,0.15355527,3005.1,3003.8,0.7747889]
[1767316837178,0.00723368,3005.1,3004.3,0.7747889]
[1767316853187,0.00623368,3005.1,3004.3,0.7747889]
[1767316854185,0.00623368,3005.1,3004.4,0.001]
[1767316863692,0.14955159,3005.1,3004.4,0.001]
[1767316863896,0.14955159,3005.1,3003.5,0.00414298]
[1767316864088,0.14331791,3004.9,3003.5,0.00414298]
[1767316866406,0.14231791,3004.9,3003.5,0.00414298]
[1767316871305,0.14331791,3004.8,3003.5,0.00414298]
[1767316879409,0.14231791,3004.8,3003.5,0.00414298]
[1767316884708,0.14131791,3004.8,3003.5,0.00414298]
[1767316892119,0.13946081,3004.6,3003.5,0.00414298]
[1767316892327,0.13946081,3004.4,3003.5,0.00414298]
[1767316893308,0.13946081,3004.4,3002.7,0.14197459]
[1767316894517,0.13946081,3004.4,3002.7,0.14604796]
[1767316895819,0.13946081,3004.2,3002.7,0.00407337]
[1767316898028,4.57,3004.1,3002.7,0.00407337]
[1767316898219,0.13946081,3004.0,3002.7,0.00407337]
[1767316903636,0.13946081,3004.4,3002.9,0.91639514]
[1767316903838,0.13946081,3004.8,3003.0,0.14197459]
[1767316904041,3.19946081,3004.7,3003.0,0.14197459]
[1767316904834,4.71146081,3004.7,3003.0,0.14197459]
[1767316905739,0.13946081,3004.7,3003.3,0.77442055]
[1767316906040,0.13946081,3004.7,3003.4,0.14197459]
[1767316906241,0.13846081,3004.7,3003.4,0.14197459]
[1767316906432,0.17282368,3005.1,3003.4,0.14197459]
[1767316906631,4.74482368,3005.1,3003.4,0.14197459]
[1767316907444,0.17282368,3005.1,3003.4,0.14197459]
[1767316907746,0.00623368,3005.1,3003.4,0.14197459]
[1767316908241,0.14569449,3005.1,3003.4,0.14197459]
[1767316909042,0.14569449,3005.1,3003.7,0.77442055]
[1767316911837,0.14569449,3005.1,3003.4,0.14197459]
[1767316915846,0.14469449,3005.1,3003.4,0.14197459]
[1767316916445,0.77475624,3005.0,3003.7,0.77475624]
[1767316916749,0.14473108,3004.9,3003.7,0.77475624]
[1767316916945,0.14473108,3004.9,3004.0,0.001]
[1767316920539,0.14473108,3004.7,3004.0,0.001]
[1767316921851,0.14473108,3004.7,3003.4,0.77475624]
[1767316928052,0.14473108,3004.5,3003.0,0.30600367]
[1767316928259,0.14473108,3004.5,3003.5,0.77475624]
[1767316928455,0.14473108,3004.9,3003.7,0.77475624]
[1767316928954,0.14473108,3004.9,3003.1,0.13929367]
[1767316929161,0.00523368,3005.1,3004.4,0.77475624]
[1767316929460,0.00523368,3005.1,3004.2,0.77475624]
[1767316929648,0.00523368,3005.1,3004.0,0.77475624]
[1767316932357,0.00523368,3005.1,3004.4,0.77475624]
[1767316932558,0.00523368,3005.1,3004.6,0.77475624]
[1767316932955,0.00523368,3005.1,3004.4,0.77475624]
[1767316936972,0.14473108,3006.1,3005.0,0.77475624]